fUSD/lending_fUSD_20260401
["ID","MTS","AMOUNT","RATE_DAILY","PERIOD"]
[419235756,1775027444281,-500.0,0.00013698,2]
[419235757,1775027444290,-500.0,0.00013698,2]
[419235758,1775027444300,-500.0,0.00013698,2]
[419235759,1775027444309,-500.0,0.00013698,2]
[419235760,1775027444318,-500.0,0.00013698,2]
[419235761,1775027444328,-500.0,0.00013698,2]
[419235762,1775027444337,-500.0,0.00013698,2]
[419235763,1775027444347,-500.0,0.00013698,2]
[419235764,1775027444356,-500.0,0.00013698,2]
[419235765,1775027444365,-500.0,0.00013698,2]
[419235766,1775027444375,-500.0,0.00013698,2]
[419235767,1775027444384,-500.0,0.00013698,2]
[419235768,1775027444394,-500.0,0.00013698,2]
[419235769,1775027444405,-500.0,0.00013698,2]
[419235770,1775027444415,-500.0,0.00013698,2]
[419235771,1775027444425,-500.0,0.00013698,2]
[419235772,1775027444441,-500.0,0.00013698,2]
[419235773,1775027444451,-500.0,0.00013698,2]
[419235774,1775027444461,-445.36727502,0.00013698,2]
[419235775,1775027444472,-500.0,0.00013698,2]
[419235776,1775027444482,-500.0,0.00013698,2]
[419235777,1775027444492,-500.0,0.00013698,2]
[419235778,1775027444506,-500.0,0.00013698,2]
[419235779,1775027444515,-500.0,0.00013698,2]
[419235780,1775027444525,-500.0,0.00013698,2]
[419235781,1775027444534,-500.0,0.00013698,2]
[419235782,1775027444543,-500.0,0.00013698,2]
[419235783,1775027444553,-500.0,0.00013698,2]
[419235784,1775027444562,-500.0,0.00013698,2]
[419235785,1775027444571,-500.0,0.00013698,2]
[419235786,1775027444581,-500.0,0.00013698,2]
[419235787,1775027444590,-500.0,0.00013698,2]
[419235788,1775027444600,-500.0,0.00013698,2]
[419235789,1775027444610,-500.0,0.00013698,2]
[419235790,1775027444619,-500.0,0.00013698,2]
[419235791,1775027444628,-500.0,0.00013698,2]
[419235792,1775027444637,-541.27886182,0.00013698,2]
[419235793,1775027444646,-500.0,0.00013698,2]
[419235794,1775027444655,-500.0,0.00013698,2]
[419235795,1775027444665,-500.0,0.00013698,2]
[419235796,1775027444674,-500.0,0.00013698,2]
[419235797,1775027444685,-500.0,0.00013698,2]
[419235798,1775027444695,-521.10158946,0.00013698,2]
[419235799,1775027444704,-500.0,0.00013698,2]
[419235800,1775027444713,-500.0,0.00013698,2]
[419235801,1775027444722,-500.0,0.00013698,2]
[419235802,1775027444731,-500.0,0.00013698,2]
[419235803,1775027444740,-618.03329484,0.00013698,2]
[419235804,1775027444749,-500.0,0.00013698,2]
[419235805,1775027444759,-500.0,0.00013698,2]
[419235806,1775027444768,-500.0,0.00013698,2]
[419235807,1775027444779,-500.0,0.00013698,2]
[419235808,1775027444790,-500.0,0.00013698,2]
[419235809,1775027444800,-500.0,0.00013698,2]
[419235810,1775027444810,-500.0,0.00013698,2]
[419235811,1775027444819,-500.0,0.00013698,2]
[419235812,1775027444828,-500.0,0.00013698,2]
[419235813,1775027444837,-500.0,0.00013698,2]
[419235814,1775027444847,-500.0,0.00013698,2]
[419235815,1775027444856,-500.0,0.00013698,2]
[419235816,1775027444866,-500.0,0.00013698,2]
[419235817,1775027444875,-376.79746068,0.00013698,2]
[419235818,1775027444884,-500.0,0.00013698,2]
[419235819,1775027444893,-500.0,0.00013698,2]
[419235820,1775027444902,-500.0,0.00013698,2]
[419235821,1775027444911,-500.0,0.00013698,2]
[419235822,1775027444920,-183.58723642,0.00013698,2]
[419235823,1775027444929,-500.0,0.00013698,2]
[419235824,1775027444940,-500.0,0.00013698,2]
[419235825,1775027444949,-500.0,0.00013698,2]
[419235826,1775027444959,-500.0,0.00013698,2]
[419235827,1775027444967,-500.0,0.00013698,2]
[419235828,1775027444977,-500.0,0.00013698,2]
[419235829,1775027444987,-500.0,0.00013698,2]
[419235830,1775027444996,-500.0,0.00013698,2]
[419235831,1775027445005,-500.0,0.00013698,2]
[419235832,1775027445014,-500.0,0.00013698,2]
[419235833,1775027445024,-500.0,0.00013698,2]
[419235834,1775027445033,-500.0,0.00013698,2]
[419235835,1775027445042,-500.0,0.00013698,2]
[419235836,1775027445051,-500.0,0.00013698,2]
[419235837,1775027445060,-500.0,0.00013698,2]
[419235838,1775027445069,-500.0,0.00013698,2]
[419235839,1775027445079,-500.0,0.00013698,2]
[419235840,1775027445087,-500.0,0.00013698,2]
[419235841,1775027445096,-500.0,0.00013698,2]
[419235842,1775027445106,-500.0,0.00013698,2]
[419235843,1775027445115,-500.0,0.00013698,2]
[419235844,1775027445125,-500.0,0.00013698,2]
[419235845,1775027445135,-495.0,0.00013698,2]
[419235846,1775027445144,-500.0,0.00013698,2]
[419235847,1775027445153,-500.0,0.00013698,2]
[419235848,1775027445162,-500.0,0.00013698,2]
[419235849,1775027445173,-500.0,0.00013698,2]
[419235850,1775027445182,-500.0,0.00013698,2]
[419235851,1775027445191,-500.0,0.00013698,2]
[419235852,1775027445200,-500.0,0.00013698,2]
[419235853,1775027445210,-500.0,0.00013698,2]
[419235854,1775027445219,-500.0,0.00013698,2]
[419235855,1775027445228,-500.0,0.00013698,2]
[419235856,1775027445238,-500.0,0.00013698,2]
[419235857,1775027445247,-500.0,0.00013698,2]
[419235858,1775027445257,-500.0,0.00013698,2]
[419235859,1775027445266,-500.0,0.00013698,2]
[419235860,1775027445275,-500.0,0.00013698,2]
[419235861,1775027445285,-500.0,0.00013698,2]
[419235862,1775027445294,-500.0,0.00013698,2]
[419235863,1775027445303,-500.0,0.00013698,2]
[419235864,1775027445312,-500.0,0.00013698,2]
[419235865,1775027445321,-500.0,0.00013698,2]
[419235866,1775027445331,-500.0,0.00013698,2]
[419235867,1775027445340,-500.0,0.00013698,2]
[419235868,1775027445350,-500.0,0.00013698,2]
[419235869,1775027445359,-500.0,0.00013698,2]
[419235870,1775027445369,-500.0,0.00013698,2]
[419235871,1775027445378,-289.97620277,0.00013698,2]
[419235872,1775027445387,-500.0,0.00013698,2]
[419235873,1775027445396,-500.0,0.00013698,2]
[419235874,1775027445405,-500.0,0.00013698,2]
[419235875,1775027445416,-500.0,0.00013698,2]
[419235876,1775027445427,-500.0,0.00013698,2]
[419235877,1775027445436,-500.0,0.00013698,2]
[419235878,1775027445445,-500.0,0.00013698,2]
[419235879,1775027445455,-500.0,0.00013698,2]
[419235880,1775027445464,-500.0,0.00013698,2]
[419235881,1775027445473,-302.3860171,0.00013698,2]
[419235882,1775027445483,-500.0,0.00013698,2]
[419235883,1775027445492,-500.0,0.00013698,2]
[419235884,1775027445502,-500.0,0.00013698,2]
[419235885,1775027445512,-500.0,0.00013698,2]
[419235886,1775027445521,-500.0,0.00013698,2]
[419235887,1775027445531,-500.0,0.00013698,2]
[419235888,1775027445541,-500.0,0.00013698,2]
[419235889,1775027445551,-500.0,0.00013698,2]
[419235890,1775027445561,-500.0,0.00013698,2]
[419235891,1775027445571,-500.0,0.00013698,2]
[419235892,1775027445580,-500.0,0.00013698,2]
[419235893,1775027445590,-500.0,0.00013698,2]
[419235894,1775027445599,-500.0,0.00013698,2]
[419235895,1775027445608,-500.0,0.00013698,2]
[419235896,1775027445618,-500.0,0.00013698,2]
[419235897,1775027445628,-500.0,0.00013698,2]
[419235898,1775027445638,-500.0,0.00013698,2]
[419235899,1775027445647,-500.0,0.00013698,2]
[419235900,1775027445657,-500.0,0.00013698,2]
[419235901,1775027445666,-175.33019501,0.00013698,2]
[419235902,1775027445677,-500.0,0.00013698,2]
[419235903,1775027445688,-500.0,0.00013698,2]
[419235904,1775027445698,-500.0,0.00013698,2]
[419235905,1775027445707,-504.62510561,0.00013698,2]
[419235906,1775027445716,-500.0,0.00013698,2]
[419235907,1775027445727,-500.0,0.00013698,2]
[419235908,1775027445736,-500.0,0.00013698,2]
[419235909,1775027445745,-500.0,0.00013698,2]
[419235910,1775027445755,-500.0,0.00013698,2]
[419235911,1775027445765,-500.0,0.00013698,2]
[419235912,1775027445776,-500.0,0.00013698,2]
[419235913,1775027445786,-500.0,0.00013698,2]
[419235914,1775027445798,-500.0,0.00013698,2]
[419235915,1775027445807,-500.0,0.00013698,2]
[419235916,1775027445818,-500.0,0.00013698,2]
[419235917,1775027445829,-500.0,0.00013698,2]
[419235918,1775027445839,-500.0,0.00013698,2]
[419235919,1775027445848,-500.0,0.00013698,2]
[419235920,1775027445857,-500.0,0.00013698,2]
[419235921,1775027445867,-500.0,0.00013698,2]
[419235922,1775027445876,-500.0,0.00013698,2]
[419235924,1775027445885,-500.0,0.00013698,2]
[419235926,1775027445895,-489.51900798,0.00013698,2]
[419235927,1775027445904,-500.0,0.00013698,2]
[419235928,1775027445913,-500.0,0.00013698,2]
[419235930,1775027445923,-500.0,0.00013698,2]
[419235931,1775027445932,-500.0,0.00013698,2]
[419235932,1775027445941,-502.04948952,0.00013698,2]
[419235933,1775027445950,-500.0,0.00013698,2]
[419235934,1775027445959,-500.0,0.00013698,2]
[419235935,1775027445969,-500.0,0.00013698,2]
[419235937,1775027445978,-500.0,0.00013698,2]
[419235939,1775027445987,-500.0,0.00013698,2]
[419235941,1775027445997,-500.0,0.00013698,2]
[419235943,1775027446006,-567.75072671,0.00013698,2]
[419235944,1775027446015,-500.0,0.00013698,2]
[419235945,1775027446263,-500.0,0.00013698,2]
[419235946,1775027446275,-500.0,0.00013698,2]
[419235947,1775027446285,-500.0,0.00013698,2]
[419235948,1775027446295,-500.0,0.00013698,2]
[419235949,1775027446304,-500.0,0.00013698,2]
[419235950,1775027446314,-500.0,0.00013698,2]
[419235951,1775027446324,-500.0,0.00013698,2]
[419235952,1775027446334,-500.0,0.00013698,2]
[419235953,1775027446343,-500.0,0.00013698,2]
[419235954,1775027446353,-500.0,0.00013698,2]
[419235955,1775027446364,-500.0,0.00013698,2]
[419235956,1775027446373,-500.0,0.00013698,2]
[419235957,1775027446383,-500.0,0.00013698,2]
[419235958,1775027446392,-500.0,0.00013698,2]
[419235959,1775027446402,-500.0,0.00013698,2]
[419235960,1775027446412,-500.0,0.00013698,2]
[419235961,1775027446422,-500.0,0.00013698,2]
[419235962,1775027446432,-500.0,0.00013698,2]
[419235963,1775027446443,-500.0,0.00013698,2]
[419235964,1775027446453,-500.0,0.00013698,2]
[419235965,1775027446463,-500.0,0.00013698,2]
[419235966,1775027446472,-500.0,0.00013698,2]
[419235967,1775027446482,-500.0,0.00013698,2]
[419235968,1775027446491,-500.0,0.00013698,2]
[419235969,1775027446501,-500.0,0.00013698,2]
[419235970,1775027446511,-500.0,0.00013698,2]
[419235971,1775027446520,-500.0,0.00013698,2]
[419235972,1775027446530,-500.0,0.00013698,2]
[419235973,1775027446540,-212.34445911,0.00013698,2]
[419235974,1775027446549,-150.0,0.00013699,2]
[419235975,1775027446559,-150.0,0.00013699,2]
[419235976,1775027446568,-150.0,0.00013699,2]
[419235977,1775027446578,-150.0,0.00013699,2]
[419235978,1775027446587,-150.0,0.00013699,2]
[419235979,1775027446597,-150.0,0.00013699,2]
[419235980,1775027446607,-150.0,0.00013699,2]
[419235981,1775027446617,-150.0,0.00013699,2]
[419235982,1775027446626,-158.5,0.00013699,2]
[419235983,1775027446636,-792.51,0.00013699,2]
[419235985,1775027446646,-200.0,0.00013699,2]
[419235987,1775027446655,-500.37557038,0.00013699,2]
[419235989,1775027446665,-500.0,0.00013699,2]
[419235991,1775027446674,-500.0,0.00013699,2]
[419235993,1775027446684,-500.0,0.00013699,2]
[419235994,1775027446695,-500.0,0.00013699,2]
[419235995,1775027446704,-627.00850068,0.00013699,2]
[419235996,1775027446714,-500.0,0.00013699,2]
[419235997,1775027446724,-500.0,0.00013699,2]
[419235998,1775027446733,-500.0,0.00013699,2]
[419235999,1775027446743,-500.73578888,0.00013699,2]
[419236000,1775027446752,-500.0,0.00013699,2]
[419236001,1775027446762,-330.62596809,0.00013699,2]
[419236002,1775027446771,-500.0,0.00013699,2]
[419236003,1775027446782,-500.0,0.00013699,2]
[419236004,1775027446791,-500.0,0.00013699,2]
[419236005,1775027446801,-500.0,0.00013699,2]
[419236006,1775027446811,-500.0,0.00013699,2]
[419236007,1775027446822,-500.0,0.00013699,2]
[419236008,1775027446835,-500.0,0.00013699,2]
[419236009,1775027446845,-500.0,0.00013699,2]
[419236010,1775027446856,-500.0,0.00013699,2]
[419236011,1775027446866,-500.0,0.00013699,2]
[419236012,1775027446875,-500.0,0.00013699,2]
[419236013,1775027446885,-367.40868416,0.00013699,2]
[419236014,1775027446895,-500.0,0.00013699,2]
[419236015,1775027446904,-342.86927072,0.00013699,2]
[419236016,1775027446913,-312.57026801,0.00013699,2]
[419236017,1775027446923,-500.0,0.00013699,2]
[419236018,1775027446932,-500.0,0.00013699,2]
[419236019,1775027446943,-500.41125099,0.00013699,2]
[419236020,1775027446952,-500.0,0.00013699,2]
[419236021,1775027446962,-500.0,0.00013699,2]
[419236022,1775027446972,-216.88168899,0.00013699,2]
[419236023,1775027446981,-9112.08,0.000137,2]
[419236024,1775027446991,-9112.08,0.000137,2]
[419236025,1775027447000,-216.76,0.00013751,2]
[419236026,1775027447010,-200.0,0.00013836,2]
[419236027,1775027447020,-12736.18350899,0.00013884,2]
[419236028,1775027447029,-1535.0,0.0001393,2]
[419236029,1775027447039,-1613.0,0.0001393,2]
[419236030,1775027447048,-6453.0,0.0001393,2]
[419236031,1775027447058,-2129.0,0.00013934,2]
[419236032,1775027447067,-150.0,0.00013973,2]
[419236033,1775027447077,-150.0,0.00013973,2]
[419236034,1775027447086,-150.0,0.00013973,2]
[419236035,1775027447096,-150.0,0.00013973,2]
[419236036,1775027447106,-150.0,0.00013973,2]
[419236037,1775027447115,-150.0,0.00013973,2]
[419236038,1775027447125,-28704.32350983,0.00014006,2]
[419236039,1775027447135,-20976.71790288,0.00014178,2]
[419236040,1775027447144,-350.0,0.0001422,2]
[419236041,1775027447154,-150.0,0.00014247,2]
[419236042,1775027447163,-150.0,0.00014247,2]
[419236043,1775027447173,-150.0,0.00014247,2]
[419236044,1775027447182,-150.0,0.00014247,2]
[419236045,1775027447192,-150.0,0.00014247,2]
[419236046,1775027447201,-150.0,0.00014247,2]
[419236047,1775027447211,-1000.0,0.00014247,2]
[419236048,1775027447220,-200.0,0.00014384,2]
[419236049,1775027447230,-409.0917,0.000145,22]
[419236050,1775027447240,-2654.57,0.000147,2]
[419236051,1775027447250,-1579.04808524,0.00014795,2]
[419236052,1775027447261,-350.0,0.00014838,2]
[419236053,1775027447273,-12736.18350899,0.00014906,2]
[419236054,1775027447283,-347.14,0.00014909,2]
[419236055,1775027447293,-200.0,0.00014932,2]
[419236056,1775027447303,-300.0,0.00015,2]
[419236057,1775027447313,-10000.0,0.00015205,2]
[419236058,1775027447323,-415.95395379,0.00015253,2]
[419236059,1775027447332,-20976.71790288,0.00015259,2]
[419236060,1775027447342,-2258.0,0.00015322,2]
[419236061,1775027447353,-9035.0,0.00015322,2]
[419236062,1775027447362,-503.0,0.00015326,2]
[419236063,1775027447372,-350.0,0.00015456,2]
[419236064,1775027447382,-466.88,0.00015471,2]
[419236065,1775027447392,-152.5578191,0.00015478,2]
[419236066,1775027447402,-200.0,0.0001548,2]
[419236067,1775027447412,-505.0,0.00015684,4]
[419236068,1775027447422,-250.0,0.0001589,2]
[419236069,1775027447432,-250.0,0.0001589,2]
[419236070,1775027447441,-358.45,0.0001589,2]
[419236071,1775027447451,-150.0,0.000159,2]
[419236072,1775027447460,-150.0,0.000159,2]
[419236073,1775027447469,-604.0,0.000159,2]
[419236074,1775027447478,-1107.5140027,0.00015928,2]
[419236075,1775027447487,-12736.18350899,0.00015928,2]
[419236076,1775027447496,-680.85122316,0.0001599,2]
[419236077,1775027447505,-525.7182,0.00016,27]
[419236078,1775027447515,-955078.69296467,0.00016,2]
[419236079,1775027447538,-1687.69476134,0.00016,2]
[419236080,1775027447582,-59072.8754676,0.00016,2]
[419236081,1775027447596,-6289.73662505,0.00016,2]
[419236082,1775027447635,-18222.7917913,0.00016,2]
[419236083,1775027447647,-2385.83263347,0.00016,2]
[419236084,1775027447659,-580.23789574,0.00016,2]
[419236085,1775027447679,-278.08,0.000137,2]
[419236086,1775027447690,-65341.98647999,0.00016,2]
[419236087,1775027448550,-419.14996673,8.749e-05,2]
[419236092,1775027450326,-80.85003327,8.749e-05,2]
[419236093,1775027450336,-500.0,8.749e-05,2]
[419236094,1775027450345,-500.0,8.749e-05,2]
[419236095,1775027450354,-500.0,8.749e-05,2]
[419236096,1775027450363,-500.0,8.749e-05,2]
[419236097,1775027450372,-499.62754705,8.749e-05,2]
[419236098,1775027450381,-278.08,0.000137,2]
[419236099,1775027450390,-278.08,0.000137,2]
[419236100,1775027450399,-278.08,0.000137,2]
[419236101,1775027450408,-278.08,0.000137,2]
[419236102,1775027450417,-296453.94746368,0.00016,2]
[419236103,1775027450428,-14129.94631173,0.00016,2]
[419236104,1775027450477,-3867414.06308498,0.00016,2]
[419236105,1775027450487,-342.803973,0.00016,2]
[419236106,1775027450498,-342.803973,0.00016,2]
[419236107,1775027450508,-342.803973,0.00016,2]
[419236108,1775027450518,-342.803973,0.00016,2]
[419236109,1775027450529,-1087816.44163178,0.00016,2]
[419236110,1775027450541,-385.4641231,0.00016,2]
[419236111,1775027451158,-216.60139728,0.000159,2]
[419236112,1775027451168,-839.8774121,0.00016,2]
[419236113,1775027451644,-349.8,0.00016,2]
[419236114,1775027451660,-9064.55610975,0.00016,2]
[419236115,1775027451676,-1426.16011409,0.00016,2]
[419236116,1775027451693,-345379.5512852,0.00016,2]
[419236117,1775027451706,-2606.68237347,0.00016,2]
[419236118,1775027451722,-37336.1643656,0.00016,2]
[419236119,1775027451989,584.26,7.843e-05,2]
[419236120,1775027452111,196.12,8.604e-05,2]
[419236121,1775027452223,-580.24,9.33e-05,2]
[419236122,1775027452233,-5470.82930398,0.00016,2]
[419236123,1775027452246,-6150.40569559,0.00016,2]
[419236124,1775027452267,-151.0,0.00013471,2]
[419236125,1775027452276,-217.499213,0.00016,2]
[419236126,1775027452484,2319.48177969,8.65e-05,2]
[419236127,1775027462057,274.0,8.65e-05,2]
[419236128,1775027473136,1422.62731953,8e-05,2]
[419236129,1775027498412,4935.52090078,8.646e-05,2]
[419236130,1775027498436,10000.01,8.646e-05,2]
[419236131,1775027498460,10000.01,8.646e-05,2]
[419236132,1775027498487,10000.01,8.646e-05,2]
[419236133,1775027498511,10000.01,8.646e-05,2]
[419236134,1775027511168,1500.0,7.523e-05,2]
[419236135,1775027511692,797.56,7.602e-05,2]
[419236136,1775027512212,800.0,7.605e-05,2]
[419236137,1775027512743,1190.0,7.776e-05,2]
[419236138,1775027513278,1288.26,7.892e-05,2]
[419236139,1775027513803,1600.0,7.931e-05,2]
[419236140,1775027514351,2030.0,8.003e-05,2]
[419236141,1775027515166,794.19,7.995e-05,2]
[419236142,1775027515190,986.31,7.995e-05,2]
[419236143,1775027515839,1300.0,8.134e-05,2]
[419236144,1775027516222,1965.34,8.19e-05,2]
[419236145,1775027516731,1467.96,8.199e-05,2]
[419236146,1775027518020,1300.0,8.396e-05,2]
[419236147,1775027518094,859.83,8.451e-05,2]
[419236148,1775027518269,2000.0,8.56e-05,2]
[419236149,1775027519113,120.57,8.566e-05,2]
[419236150,1775027519146,579.43,8.566e-05,2]
[419236151,1775027519302,1350.0,8.598e-05,2]
[419236152,1775027519831,1600.0,8.627e-05,2]
[419236153,1775027521991,1025.69,8.241e-05,2]
[419236160,1775027585272,1200.0,7.963e-05,2]
[419236161,1775027585363,1102.06,8.274e-05,2]
[419236162,1775027585525,910.5,8.468e-05,2]
[419236163,1775027585718,900.0,8.554e-05,2]
[419236164,1775027621744,152.0,6.544e-05,2]
[419236165,1775027622018,152.0,6.544e-05,2]
[419236166,1775027622266,152.0,6.544e-05,2]
[419236167,1775027622507,152.0,6.544e-05,2]
[419236168,1775027622739,152.0,6.544e-05,2]
[419236169,1775027622948,152.0,6.544e-05,2]
[419236170,1775027623208,152.0,6.544e-05,2]
[419236171,1775027623446,152.0,6.544e-05,2]
[419236172,1775027623671,116.33,6.544e-05,2]
[419236173,1775027623694,35.67,6.544e-05,2]
[419236174,1775027623890,152.0,6.544e-05,2]
[419236175,1775027624124,152.0,6.544e-05,2]
[419236176,1775027624356,152.0,6.544e-05,2]
[419236177,1775027624606,152.0,6.544e-05,2]
[419236178,1775027649490,600.0,8.279e-05,2]
[419236180,1775027678580,166.66,8.478e-05,2]
[419236181,1775027770883,2500.0,8.546e-05,2]
[419236182,1775027916538,-300.0,8.637e-05,2]
[419236183,1775027916569,-274.0,8.637e-05,2]
[419236184,1775027916602,-250.0,8.638e-05,2]
[419236185,1775027916632,-300.0,8.638e-05,2]
[419236186,1775027916660,-300.0,8.638e-05,2]
[419236187,1775027916689,-1200.0,8.638e-05,2]
[419236188,1775027916718,-150.0,8.638e-05,2]
[419236189,1775027921000,4452.01,8.241e-05,2]
[419236190,1775027921023,2753.08,8.241e-05,2]
[419236191,1775027927901,200.0,7.7e-05,2]
[419236192,1775027932893,1600.0,8.206e-05,2]
[419236193,1775027934244,1200.0,8.638e-05,2]
[419236194,1775027934961,2500.0,8.54e-05,2]
[419236195,1775027941219,300.0,8.638e-05,2]
[419236196,1775027946764,1446.93,8.538e-05,2]
[419236197,1775027946789,988.6198,8.538e-05,2]
[419236198,1775027954544,274.0,8.638e-05,2]
[419236199,1775027955813,1800.0,8.33e-05,2]
[419236200,1775027957415,1063.06,8.532e-05,2]
[419236201,1775028001107,300.0,8.638e-05,2]
[419236202,1775028001263,1200.0,8.638e-05,2]
[419236203,1775028001457,300.0,8.638e-05,2]
[419236204,1775028015580,274.0,8.638e-05,2]
[419236205,1775028016892,1887.89,8.208e-05,2]
[419236206,1775028028252,670.0,8.328e-05,2]
[419236207,1775028028752,560.0,8.445e-05,2]
[419236208,1775028039194,500.0,8.537e-05,2]
[419236209,1775028061574,300.0,8.638e-05,2]
[419236210,1775028061977,300.0,8.638e-05,2]
[419236211,1775028062329,150.0,8.638e-05,2]
[419236212,1775028062380,300.0,8.638e-05,2]
[419236213,1775028076966,274.0,8.638e-05,2]
[419236214,1775028088814,4611.128,8.467e-05,2]
[419236215,1775028088850,179.718,8.467e-05,2]
[419236216,1775028092293,2155.164,8.539e-05,2]
[419236217,1775028092316,10000.01,8.539e-05,2]
[419236218,1775028092337,10000.01,8.539e-05,2]
[419236219,1775028092690,4187.4238,8.539e-05,2]
[419236220,1775028093551,326.94,8.313e-05,2]
[419236221,1775028099969,2500.0,8.54e-05,2]
[419236222,1775028113372,7500.01,8.595e-05,2]
[419236223,1775028113429,10000.01,8.595e-05,2]
[419236224,1775028137246,200.0,8.5e-05,2]
[419236225,1775028154482,4800.01,8.539e-05,2]
[419236226,1775028154504,527.9079,8.539e-05,2]
[419236227,1775028157033,1900.0,8.328e-05,2]
[419236228,1775028200849,172.53,6.216e-05,2]
[419236229,1775028203555,172.53,7.252e-05,2]
[419236230,1775028203615,172.53,8.289e-05,2]
[419236231,1775028232728,1155.64,7.765e-05,2]
[419236232,1775028233658,-3835.161694,8.595e-05,2]
[419236233,1775028233690,-273.0,8.595e-05,2]
[419236234,1775028233719,-250.0,8.617e-05,2]
[419236235,1775028233748,-300.0,8.622e-05,2]
[419236236,1775028233777,-183.686612,8.623e-05,2]
[419236237,1775028237847,898.8721,7.827e-05,2]
[419236238,1775028237870,331.0479,7.827e-05,2]
[419236239,1775028249207,4149.2496,8.54e-05,2]
[419236240,1775028255045,850.7604,8.54e-05,2]
[419236241,1775028255068,5000.01,8.54e-05,2]
[419236242,1775028255089,5000.01,8.54e-05,2]
[419236243,1775028255113,5000.01,8.54e-05,2]
[419236244,1775028255137,5000.01,8.54e-05,2]
[419236245,1775028255159,5000.01,8.54e-05,2]
[419236246,1775028261237,272.0,8.54e-05,2]
[419236247,1775028280337,919.6,7.532e-05,2]
[419236248,1775028285429,500.0,7.721e-05,2]
[419236249,1775028301145,300.0,8.539e-05,2]
[419236250,1775028301276,300.0,8.539e-05,2]
[419236251,1775028301741,1200.0,8.539e-05,2]
[419236252,1775028304113,300.0,8.539e-05,2]
[419236253,1775028318407,150.0,7.767e-05,2]
[419236254,1775028318450,150.0,7.983e-05,2]
[419236255,1775028318486,150.0,8.199e-05,2]
[419236256,1775028318530,150.0,8.414e-05,2]
[419236257,1775028318560,150.0,7.767e-05,2]
[419236258,1775028318594,150.0,8.199e-05,2]
[419236259,1775028318658,150.0,8.342e-05,2]
[419236260,1775028318693,150.0,7.767e-05,2]
[419236261,1775028318723,150.0,8.055e-05,2]
[419236262,1775028321696,130.41,8.54e-05,2]
[419236263,1775028321720,141.59,8.54e-05,2]
[419236264,1775028324241,150.0,7.767e-05,2]
[419236265,1775028324394,150.0,7.767e-05,2]
[419236266,1775028324463,150.0,7.89e-05,2]
[419236267,1775028324494,150.0,8.014e-05,2]
[419236268,1775028324556,150.0,8.137e-05,2]
[419236269,1775028324632,150.0,8.26e-05,2]
[419236270,1775028324694,150.0,8.384e-05,2]
[419236271,1775028324765,150.0,8.507e-05,2]
[419236272,1775028327918,150.0,7.767e-05,2]
[419236273,1775028328041,150.0,8.199e-05,2]
[419236274,1775028335400,150.0,7.767e-05,2]
[419236275,1775028335551,150.0,7.767e-05,2]
[419236276,1775028335612,150.0,7.983e-05,2]
[419236277,1775028335684,150.0,8.199e-05,2]
[419236278,1775028335717,150.0,8.414e-05,2]